fUST/lending_fUST_20250113
["ID","MTS","AMOUNT","RATE_DAILY","PERIOD"]
[348747702,1736768854250,-663.71,0.00020152,3]
[348747703,1736768854274,-663.71,0.00020426,3]
[348747704,1736768854298,-663.71,0.000207,3]
[348747705,1736768854325,-663.71,0.00020974,3]
[348747706,1736768854351,-663.71,0.00021248,3]
[348747707,1736768854376,-663.71,0.00021522,3]
[348747708,1736768854401,-663.71,0.00021796,3]
[348747709,1736768854426,-663.71,0.0002207,3]
[348747710,1736768854452,-663.71,0.00022344,3]
[348747711,1736768854585,-4897.37221885,0.0002248,5]
[348747712,1736768854609,-500.0,0.00022499,2]
[348747713,1736768854634,-500.0,0.00022499,2]
[348747714,1736768854657,-213.91010611,0.00022499,2]
[348747715,1736768854680,-16087.11486123,0.000225,5]
[348747716,1736768854702,-3678.48379759,0.000225,5]
[348747717,1736768854728,-718331.70516506,0.000225,10]
[348747719,1736768953265,-527.6785101,0.00019178,2]
[348747720,1736768953420,-500.0,0.00019178,2]
[348747721,1736768953462,-297.3,0.00019178,2]
[348747722,1736768953504,-500.0,0.00019178,2]
[348747723,1736768953543,-500.0,0.00019178,2]
[348747724,1736768953580,-500.0,0.00019178,2]
[348747725,1736768953620,-500.0,0.00019178,2]
[348747726,1736768953672,-500.0,0.00019178,2]
[348747727,1736768953716,-413.07192016,0.00019178,2]
[348747728,1736768953758,-500.0,0.00019178,2]
[348747729,1736768953798,-500.0,0.00019178,2]
[348747730,1736768953837,-500.0,0.00019178,2]
[348747731,1736768953880,-500.0,0.00019178,2]
[348747732,1736768953923,-500.0,0.00019178,2]
[348747733,1736768953965,-500.0,0.00019178,2]
[348747734,1736768954012,-500.0,0.00019178,2]
[348747735,1736768954055,-500.0,0.00019452,3]
[348747736,1736768954094,-500.0,0.00019452,3]
[348747737,1736768954134,-500.0,0.00019452,3]
[348747738,1736768954178,-241.8,0.00019452,3]
[348747739,1736768954217,-500.0,0.00019452,3]
[348747740,1736768954257,-500.0,0.00019452,3]
[348747741,1736768954299,-500.0,0.00019452,3]
[348747742,1736768954341,-500.0,0.00019452,3]
[348747743,1736768954379,-500.0,0.00019452,3]
[348747744,1736768954422,-506.94560648,0.00019452,3]
[348747745,1736768954465,-1531.07,0.00019726,3]
[348747746,1736768954510,-500.0,0.00019726,3]
[348747747,1736768954552,-500.0,0.00019726,3]
[348747748,1736768954594,-500.0,0.00019726,3]
[348747749,1736768954638,-500.0,0.00019726,3]
[348747750,1736768954682,-500.0,0.00019726,3]
[348747751,1736768954723,-500.0,0.00019726,3]
[348747752,1736768954762,-161.9106517,0.0002,3]
[348747753,1736768971087,-170.05380415,0.00019078,2]
[348747754,1736768971108,-507.01029503,0.00019178,2]
[348747755,1736768971130,-507.43840312,0.00019178,2]
[348747756,1736768971153,-500.0,0.00019178,2]
[348747757,1736768971180,-500.0,0.00019178,2]
[348747758,1736768971205,-500.0,0.00019178,2]
[348747759,1736768971227,-500.0,0.00019178,2]
[348747760,1736768971251,-815.48,0.00019178,2]
[348747761,1736768971273,-500.0,0.00019178,2]
[348747762,1736768971296,-500.0,0.00019178,2]
[348747763,1736768971317,-500.0,0.00019452,3]
[348747764,1736768971340,-500.0,0.00019452,3]
[348747765,1736768971363,-500.0,0.00019452,3]
[348747766,1736768971387,-815.48,0.00019452,3]
[348747767,1736768971410,-500.0,0.00019452,3]
[348747768,1736768971436,-500.0,0.00019452,3]
[348747769,1736768971457,-500.0,0.00019726,3]
[348747770,1736768971481,-500.0,0.00019726,3]
[348747771,1736768971504,-500.0,0.00019726,3]
[348747772,1736768971526,-815.48,0.00019726,3]
[348747773,1736768971549,-636.76222691,0.00019726,3]
[348747774,1736768971573,-232.56625738,0.00019726,3]
[348747843,1736769032053,-500.0,0.00019178,2]
[348747846,1736769032063,-500.0,0.00019178,2]
[348747848,1736769032073,-500.0,0.00019178,2]
[348747850,1736769032082,-500.0,0.00019178,2]
[348747852,1736769032092,-591.40379483,0.00019178,2]
[348747854,1736769032102,-500.0,0.00019178,2]
[348747855,1736769032112,-501.86505248,0.00019178,2]
[348747856,1736769032122,-500.68961735,0.00019178,2]
[348747857,1736769032131,-500.0,0.00019178,2]
[348747858,1736769032140,-608.37,0.00019178,2]
[348747859,1736769032150,-500.0,0.00019178,2]
[348747860,1736769032159,-500.0,0.00019178,2]
[348747861,1736769032168,-500.0,0.00019178,2]
[348747862,1736769032178,-500.0,0.00019452,3]
[348747863,1736769032187,-604.45,0.00019452,3]
[348747864,1736769032196,-302.73,0.00019452,3]
[348747865,1736769032205,-500.0,0.00019452,3]
[348747866,1736769032214,-340.39764371,0.00019452,3]
[348747867,1736769032225,-169.764469,0.00019654,2]
[348747868,1736769032234,-267.43374262,0.00019726,3]
[348747869,1736769032244,-500.0,0.00019726,3]
[348747870,1736769032253,-500.0,0.00019726,3]
[348747871,1736769032262,-1369.1593483,0.0002,3]
[348747872,1736769032271,-500.0,0.0002,3]
[348747873,1736769032281,-500.0,0.0002,3]
[348747874,1736769032290,-257.44906916,0.0002,3]
[348747875,1736769032299,-582.02,0.0002,2]
[348747876,1736769032308,-500.0,0.0002,3]
[348747878,1736769032318,-815.48,0.0002,3]
[348747879,1736769032328,-1531.07,0.00020273,3]
[348747881,1736769032337,-500.0,0.00020273,3]
[348747883,1736769032347,-624.06833958,0.00020273,3]
[348747885,1736769032356,-500.0,0.00020273,3]
[348747887,1736769032366,-815.48,0.00020273,3]
[348747889,1736769032376,-322.2590687,0.00020327,2]
[348747891,1736769032386,-491.40851526,0.000204,2]
[348747893,1736769032396,-500.0,0.00020545,3]
[348747895,1736769032405,-500.0,0.00020545,3]
[348747897,1736769032415,-1531.07,0.00020547,3]
[348747899,1736769032424,-500.0,0.00020547,3]
[348747901,1736769032433,-500.0,0.00020547,3]
[348747903,1736769032443,-815.48,0.00020547,3]
[348747905,1736769032452,-500.0,0.00020819,3]
[348747907,1736769032462,-500.0,0.00020819,3]
[348747909,1736769032473,-1408.23518376,0.00020821,3]
[348747912,1736769032485,-122.83481624,0.00020821,3]
[348747914,1736769032495,-500.0,0.00020821,3]
[348747916,1736769032505,-500.0,0.00020821,3]
[348747918,1736769032515,-815.48,0.00020821,3]
[348747920,1736769032524,-500.0,0.00021093,3]
[348747922,1736769032534,-500.0,0.00021093,3]
[348747924,1736769032543,-1531.07,0.00021095,3]
[348747926,1736769032553,-500.0,0.00021095,3]
[348747928,1736769032562,-300.04039907,0.00021095,3]
[348747930,1736769032572,-815.48,0.00021095,3]
[348747932,1736769032582,-500.0,0.00021367,3]
[348747934,1736769032591,-1531.07,0.00021369,3]
[348747936,1736769032600,-500.0,0.00021369,3]
[348747938,1736769032610,-815.48,0.00021369,3]
[348747940,1736769032619,-500.0,0.00021641,3]
[348747942,1736769032629,-1531.07,0.00021643,3]
[348747944,1736769032639,-500.0,0.00021643,3]
[348747946,1736769032649,-815.48,0.00021643,3]
[348747948,1736769032659,-500.0,0.00021915,3]
[348747950,1736769032669,-1531.07,0.00021917,3]
[348747952,1736769032679,-500.0,0.00021917,3]
[348747954,1736769032688,-815.48,0.00021917,3]
[348747956,1736769032698,-500.0,0.00022189,3]
[348747958,1736769032708,-154.53,0.00022191,2]
[348747960,1736769032718,-1531.07,0.00022191,3]
[348747962,1736769032728,-500.0,0.00022191,3]
[348747964,1736769032737,-815.48,0.00022191,3]
[348747966,1736769032747,-500.0,0.00022463,3]
[348747968,1736769032756,-1531.07,0.00022465,3]
[348747970,1736769032766,-500.0,0.00022465,3]
[348747972,1736769032775,-815.48,0.00022465,3]
[348747975,1736769032786,-114719.55395175,0.000225,10]
[348747977,1736769032795,-1801.11,0.000225,14]
[348747979,1736769032805,-4614.88,0.000225,14]
[348747981,1736769032814,-1171.45,0.000225,10]
[348747983,1736769032823,-342.89348627,0.00022555,2]
[348747985,1736769032833,-8800.91193095,0.0002258,60]
[348747987,1736769032842,-342.89348627,0.00022659,2]
[348747989,1736769032852,-500.0,0.00022737,3]
[348747991,1736769032863,-1407.68,0.00022739,2]
[348747993,1736769032875,-1531.07,0.00022739,3]
[348747995,1736769032886,-500.0,0.00022739,3]
[348747997,1736769032896,-815.48,0.00022739,3]
[348747999,1736769032907,-342.89348627,0.00022762,2]
[348748001,1736769032917,-3000.0,0.0002277,2]
[348748003,1736769032926,-151.0,0.000228,7]
[348748018,1736769033060,-151.0,0.000228,5]
[348748021,1736769033075,-342.89348627,0.00022866,2]
[348748023,1736769033086,-500.0,0.00022869,2]
[348748025,1736769033095,-471.6643019,0.00022869,2]
[348748027,1736769033105,-12715.76964393,0.0002287,2]
[348748029,1736769033118,-3464.81354268,0.0002287,2]
[348748031,1736769033131,-1074.3,0.0002287,2]
[348748034,1736769033147,-911.94216832,0.0002287,2]
[348748568,1736769039493,-500.0,0.00019178,2]
[348748570,1736769039503,-500.0,0.00019452,3]
[348748571,1736769039513,-182.9,0.00019726,3]
[348748572,1736769039523,-500.0,0.00020544,3]
[348748573,1736769039533,-500.0,0.00020544,3]
[348748574,1736769039543,-500.0,0.00020818,3]
[348748575,1736769039552,-500.0,0.00020818,3]
[348748578,1736769039562,-500.0,0.00021092,3]
[348748581,1736769039572,-500.0,0.00021092,3]
[348748583,1736769039582,-172.12,0.00021366,3]
[348748584,1736769039593,-54005.91891647,0.0002287,2]
[348748585,1736769039603,-342.89348627,0.00022969,2]
[348748586,1736769039613,-7438.69753278,0.00023,2]
[348748587,1736769039622,-7438.69753278,0.00023,2]
[348748588,1736769039632,-7403.45833297,0.00023,2]
[348748589,1736769039645,-187.80232036,0.00023,2]
[348748590,1736769039654,-300.0,0.00023,10]
[348748591,1736769039665,-157.41907132,0.00023,3]
[348748592,1736769039674,-7438.69753278,0.00023,3]
[348748593,1736769039684,-500.0,0.00023011,3]
[348748594,1736769039694,-1407.68,0.00023013,2]
[348748595,1736769039704,-1531.07,0.00023013,3]
[348748596,1736769039714,-500.0,0.00023013,3]
[348748597,1736769039726,-815.48,0.00023013,3]
[348748598,1736769039736,-158.0,0.00023014,2]
[348748599,1736769039745,-342.89348627,0.00023072,2]
[348748600,1736769039755,-342.89348627,0.00023176,2]
[348748601,1736769039765,-342.89348627,0.00023279,2]
[348748602,1736769039774,-500.0,0.00023285,3]
[348748603,1736769039784,-1407.68,0.00023287,2]
[348748604,1736769039794,-1531.07,0.00023287,3]
[348748605,1736769039804,-500.0,0.00023287,3]
[348748606,1736769039814,-815.48,0.00023287,3]
[348748607,1736769039824,-16741.67016019,0.000233,5]
[348748608,1736769039837,-11390.0932457,0.000233,5]
[348748609,1736769039849,-18059.29326238,0.000233,5]
[348748610,1736769039858,-115.95204238,0.00023383,2]
[348748611,1736769039872,-226.94144389,0.00023383,2]
[348748612,1736769039883,-670.6654148,0.00023387,2]
[348748614,1736769039892,-10788.28100239,0.00023474,2]
[348748616,1736769039902,-342.89348627,0.00023486,2]
[348748618,1736769039914,-9738.38231836,0.000235,2]
[348748620,1736769039923,-1335.74926644,0.00023522,2]
[348748622,1736769039933,-851.34193587,0.00023528,2]
[348748624,1736769039942,-500.0,0.00023559,3]
[348748625,1736769039953,-1407.68,0.00023561,2]
[348748627,1736769039963,-1531.07,0.00023561,3]
[348748628,1736769039975,-500.0,0.00023561,3]
[348748629,1736769039985,-815.48,0.00023561,3]
[348748630,1736769039995,-342.89348627,0.0002359,2]
[348748632,1736769040005,-306.0,0.00023616,2]
[348748634,1736769040016,-321.9109041,0.00023616,2]
[348748635,1736769040025,-151.0,0.0002362,7]
[348748636,1736769040035,-151.0,0.0002362,7]
[348748637,1736769040045,-151.0,0.0002362,7]
[348748638,1736769040055,-151.0,0.0002362,7]
[348748639,1736769040066,-233.922324,0.0002362,7]
[348748640,1736769040075,-151.0,0.0002362,7]
[348748642,1736769040085,-151.0,0.0002362,7]
[348748643,1736769040095,-151.0,0.0002362,7]
[348748645,1736769040105,-188.306684,0.0002362,7]
[348748654,1736769040114,-151.0,0.0002362,7]
[348748657,1736769040208,-151.0,0.0002362,7]
[348748659,1736769040220,-151.0,0.0002362,7]
[348748660,1736769040229,-151.0,0.0002362,7]
[348748662,1736769040239,-192.352149,0.0002362,7]
[348748664,1736769040248,-151.0,0.0002362,7]
[348748666,1736769040257,-151.0,0.0002362,7]
[348748668,1736769040267,-151.0,0.0002362,7]
[348748669,1736769040277,-151.0,0.0002362,7]
[348748671,1736769040286,-151.0,0.0002362,7]
[348748673,1736769040296,-151.0,0.0002362,7]
[348748675,1736769040306,-151.0,0.0002362,7]
[348748677,1736769040315,-151.0,0.0002362,7]
[348748678,1736769040324,-151.0,0.0002362,7]
[348748679,1736769040334,-151.0,0.0002362,7]
[348748680,1736769040344,-151.0,0.0002362,7]
[348748681,1736769040353,-151.0,0.0002362,7]
[348748682,1736769040363,-151.0,0.0002362,7]
[348748683,1736769040372,-156.078054,0.0002362,7]
[348748684,1736769040381,-474.677334,0.00023622,7]
[348748685,1736769040391,-474.677334,0.00023622,7]
[348748686,1736769040400,-474.677334,0.00023622,7]
[348748687,1736769040410,-474.677334,0.00023622,7]
[348748688,1736769040420,-474.677334,0.00023622,7]
[348748689,1736769040429,-474.677334,0.00023622,7]
[348748690,1736769040439,-474.677334,0.00023622,7]
[348748691,1736769040448,-474.677334,0.00023622,7]
[348748692,1736769040458,-474.677334,0.00023622,7]
[348748693,1736769040470,-474.677334,0.00023622,7]
[348748694,1736769040479,-474.677334,0.00023622,7]
[348748695,1736769040488,-474.677334,0.00023622,7]
[348748696,1736769040498,-474.677334,0.00023622,7]
[348748697,1736769040507,-474.677334,0.00023622,7]
[348748698,1736769040517,-474.677334,0.00023622,7]
[348748699,1736769040526,-474.677334,0.00023622,7]
[348748700,1736769040536,-474.677334,0.00023622,7]
[348748701,1736769040545,-474.677334,0.00023622,7]
[348748702,1736769040554,-474.677334,0.00023622,7]
[348748703,1736769040563,-474.677326,0.00023622,7]
[348748704,1736769040573,-464.84987,0.00023622,7]
[348748705,1736769040582,-464.84987,0.00023622,7]
[348748706,1736769040591,-464.84987,0.00023622,7]
[348748707,1736769040600,-464.84987,0.00023622,7]
[348748708,1736769040610,-464.84987,0.00023622,7]
[348748709,1736769040619,-464.84987,0.00023622,7]
[348748710,1736769040628,-464.84987,0.00023622,7]
[348748711,1736769040637,-464.84987,0.00023622,7]
[348748712,1736769040647,-464.84987,0.00023622,7]
[348748713,1736769040656,-464.84987,0.00023622,7]
[348748714,1736769040665,-464.84987,0.00023622,7]
[348748715,1736769040674,-464.84987,0.00023622,7]
[348748716,1736769040683,-464.84987,0.00023622,7]
[348748717,1736769040692,-151.0,0.00023622,7]
[348748718,1736769040701,-464.84987,0.00023622,7]
[348748719,1736769040710,-464.84987,0.00023622,7]
[348748720,1736769040720,-464.84987,0.00023622,7]
[348748721,1736769040730,-464.84987,0.00023622,7]
[348748722,1736769040739,-464.84987,0.00023622,7]
[348748723,1736769040748,-464.84987,0.00023622,7]
[348748724,1736769040757,-464.84987,0.00023622,7]
[348748725,1736769040767,-151.0,0.00023622,7]
[348748726,1736769040776,-151.0,0.00023622,7]
[348748727,1736769040786,-151.0,0.00023622,7]
[348748728,1736769040795,-151.0,0.00023622,7]
[348748729,1736769040804,-151.0,0.00023622,7]
[348748730,1736769040813,-151.0,0.00023622,7]
[348748731,1736769040822,-151.0,0.00023622,7]
[348748732,1736769040831,-151.0,0.00023622,7]
[348748733,1736769040840,-151.0,0.00023622,7]
[348748734,1736769040849,-151.0,0.00023622,7]
[348748735,1736769040857,-151.0,0.00023622,7]
[348748736,1736769040866,-151.0,0.00023622,7]
[348748737,1736769040880,-151.0,0.00023622,7]
[348748738,1736769040889,-151.0,0.00023622,7]
[348748739,1736769040898,-151.0,0.00023622,7]
[348748740,1736769040908,-151.0,0.00023622,7]
[348748741,1736769040918,-151.0,0.00023622,7]
[348748742,1736769040927,-151.0,0.00023622,7]
[348748743,1736769040937,-151.0,0.00023622,7]
[348748744,1736769040946,-151.0,0.00023622,7]
[348748745,1736769040956,-151.0,0.00023622,7]
[348748746,1736769040965,-151.0,0.00023622,7]
[348748747,1736769040977,-221.627422,0.00023622,7]
[348748748,1736769040986,-151.0,0.00023622,7]
[348748749,1736769040996,-151.0,0.00023622,7]
[348748750,1736769041006,-151.0,0.00023622,7]
[348748751,1736769041015,-151.0,0.00023622,7]
[348748752,1736769041027,-151.0,0.00023622,7]
[348748753,1736769041036,-151.0,0.00023622,7]
[348748754,1736769041045,-151.0,0.00023622,7]
[348748755,1736769041055,-151.0,0.00023622,7]
[348748756,1736769041064,-151.0,0.00023622,7]
[348748757,1736769041073,-151.0,0.00023622,7]
[348748758,1736769041083,-151.0,0.00023622,7]
[348748759,1736769041092,-151.0,0.00023622,7]
[348748760,1736769041101,-288.79469,0.00023622,7]
[348748761,1736769041110,-200.842301,0.00023622,7]
[348748762,1736769041119,-200.842301,0.00023622,7]
[348748763,1736769041128,-200.842301,0.00023622,7]
[348748764,1736769041137,-200.842301,0.00023622,7]
[348748765,1736769041147,-200.842301,0.00023622,7]
[348748766,1736769041156,-200.842301,0.00023622,7]
[348748767,1736769041165,-200.842301,0.00023622,7]
[348748768,1736769041174,-200.842301,0.00023622,7]
[348748769,1736769041183,-200.842301,0.00023622,7]
[348748770,1736769041193,-200.842301,0.00023622,7]
[348748771,1736769041202,-200.842301,0.00023622,7]
[348748772,1736769041211,-200.842301,0.00023622,7]
[348748773,1736769041221,-200.842301,0.00023622,7]
[348748774,1736769041229,-200.842301,0.00023622,7]
[348748775,1736769041238,-200.842301,0.00023622,7]
[348748776,1736769041248,-200.842301,0.00023622,7]
[348748777,1736769041257,-200.842301,0.00023622,7]
[348748778,1736769041266,-200.842301,0.00023622,7]
[348748779,1736769041275,-200.842301,0.00023622,7]
[348748780,1736769041283,-200.842299,0.00023622,7]
[348748781,1736769041294,-508.11123178,0.00023623,2]
[348748782,1736769041303,-8043.55743061,0.00023624,5]
[348748783,1736769041312,-1839.24189879,0.00023624,5]
[348748784,1736769041321,-82432.32876743,0.00023625,10]
[348748785,1736769041933,-8176.135656,0.00023625,10]
[348748786,1736769041980,-444.54206958,0.00023625,10]
[348748787,1736769041991,-239000.0,0.00023625,10]
[348748788,1736769042190,-83942.749955,0.00023625,10]
[348748789,1736769042206,-551.25139141,0.00021366,3]
[348748790,1736769042215,-6339.62655508,0.00023625,10]
[348748796,1736769042359,-82376.04160034,0.00023625,10]
[348748798,1736769042375,-473.5778972,0.00019178,2]
[348748801,1736769042390,-26.4221028,0.00019178,2]
[348748803,1736769042399,-342.8628682,0.00023625,10]
[348748807,1736769042410,-4562.05,0.00023625,10]
[348748809,1736769042426,-249.02,0.00019452,3]
[348748813,1736769042436,-145.88317746,0.00023625,10]
[348748816,1736769042448,-1443.08800665,0.00023625,10]
[348748919,1736769043044,-500.0,0.00019178,2]
[348748921,1736769043055,-500.0,0.00019452,2]
[348748923,1736769043065,-538.94999999,0.00023625,10]
[348748925,1736769043077,-952.99999961,0.00023625,10]
[348748931,1736769043119,-3106.00058647,0.00023625,10]
[348748933,1736769043131,-755.0,0.00023625,10]
[348748935,1736769043143,-910.0,0.00023625,10]
[348749219,1736769046053,-500.0,0.00019726,2]
[348749220,1736769046063,-500.0,0.0002,2]
[348749221,1736769046072,-500.0,0.00020273,2]
[348749222,1736769046082,-500.0,0.00020547,2]
[348749223,1736769046091,-500.0,0.00020821,2]
[348749224,1736769046100,-500.0,0.00021095,2]
[348749225,1736769046109,-500.0,0.00021369,2]
[348749226,1736769046119,-500.0,0.00021643,2]
[348749227,1736769046128,-21311.53005793,0.00023625,10]
[348749228,1736769046139,-27360.00005436,0.00023625,10]
[348749229,1736769046151,-906.7,0.00023625,10]
[348749230,1736769046163,-179479.20507835,0.00023625,10]
[348749239,1736769046714,-13.5611678,0.00023625,10]
[348749240,1736769047775,-14185.570825,0.00023625,10]
[348749241,1736769047786,-4940.44240033,0.00023625,10]
[348749242,1736769118842,1000.0,0.00025,120]
[348749244,1736769645728,198.81646,0.00013973,2]
[348749246,1736770025231,-204.9064751,0.0001743,2]
[348749247,1736770025256,-27.922992,0.00017857,2]
[348749262,1736770148495,53158.0,0.00025,120]
[348749263,1736770149098,-998.548926,0.00017857,2]
[348749264,1736770149121,-500.0,0.00018034,2]
[348749265,1736770149143,-500.0,0.00018034,2]
[348749266,1736770149164,-363.39309336,0.00018034,2]
[348749267,1736770149186,-300.0,0.00018034,2]
[348749268,1736770149211,-36221.08526248,0.00018035,2]
[348749269,1736770154263,-5307.08497452,0.00018035,2]
[348749270,1736770154283,-778.4987253,0.00018105,2]
[348749271,1736770154308,-2064.31699584,0.00018803,2]
[348749272,1736770154329,-24900.0,0.00018904,2]
[348749273,1736770154348,-152.0,0.0001895,2]
[348749274,1736770154368,-176.71377593,0.00019078,2]
[348749275,1736770154389,-151.0,0.00019166,2]
[348749276,1736770154410,-500.0,0.00019177,2]
[348749277,1736770154431,-261.27437681,0.00019177,2]
[348749278,1736770154452,-500.0,0.00019177,2]
[348749279,1736770154474,-500.0,0.00019177,2]
[348749280,1736770154497,-500.0,0.00019177,2]
[348749281,1736770154519,-363.20156658,0.00019177,2]
[348749282,1736770154540,-418.12398308,0.00019177,2]
[348749283,1736770154562,-503.47805598,0.00019178,2]
[348749284,1736770154585,-507.28,0.00019178,2]
[348749285,1736770154606,-500.0,0.00019178,2]
[348749286,1736770154626,-504.70337052,0.00019178,2]
[348749287,1736770154646,-500.0,0.00019178,2]
[348749288,1736770154666,-501.27830389,0.00019178,2]
[348749289,1736770154686,-503.46600007,0.00019178,2]
[348749290,1736770154707,-500.0,0.00019178,2]
[348749291,1736770154728,-501.73770138,0.00019178,2]
[348749292,1736770154747,-501.8111549,0.00019178,2]
[348749293,1736770154770,-500.0,0.00019178,2]
[348749294,1736770154790,-486.50833688,0.00019178,2]
[348749295,1736770154815,-500.0,0.00019178,2]
[348749296,1736770154836,-500.0,0.00019178,2]
[348749297,1736770154857,-500.0,0.00019178,2]
[348749298,1736770154877,-500.0,0.00019178,2]
[348749299,1736770154897,-540.45070302,0.00019178,2]
[348749300,1736770154917,-504.53448255,0.00019178,2]
[348749301,1736770154938,-500.0,0.00019178,2]
[348749302,1736770154959,-500.0,0.00019178,2]
[348749303,1736770154982,-500.0,0.00019178,2]
[348749304,1736770155003,-500.0,0.00019178,2]
[348749305,1736770155025,-500.0,0.00019178,2]
[348749306,1736770155047,-444.30592056,0.00019178,2]
[348749307,1736770155177,-266.55256212,0.00019178,2]
[348749308,1736770155201,-500.0,0.00019178,2]
[348749309,1736770155222,-500.0,0.00019178,2]
[348749310,1736770155246,-500.0,0.00019178,2]
[348749311,1736770155266,-500.0,0.00019178,2]
[348749312,1736770155288,-500.0,0.00019178,2]
[348749313,1736770155309,-500.0,0.00019178,2]
[348749314,1736770155329,-500.0,0.00019178,2]
[348749315,1736770155350,-500.0,0.00019178,2]
[348749316,1736770155371,-500.0,0.00019178,2]
[348749317,1736770155392,-500.0,0.00019178,2]
[348749318,1736770155412,-500.0,0.00019178,2]
[348749319,1736770155437,-500.0,0.00019178,2]
[348749320,1736770155458,-500.0,0.00019178,2]
[348749321,1736770155478,-500.0,0.00019178,2]
[348749322,1736770155499,-500.0,0.00019178,2]
[348749323,1736770155520,-251.07583281,0.00019178,2]
[348749324,1736770155541,-500.0,0.00019178,2]
[348749325,1736770155564,-500.0,0.00019178,2]
[348749326,1736770155585,-500.0,0.00019178,2]
[348749327,1736770155606,-586.49,0.00019178,2]
[348749328,1736770155628,-500.0,0.00019178,2]
[348749329,1736770155649,-500.0,0.00019178,2]
[348749330,1736770155669,-500.0,0.00019178,2]
[348749331,1736770155691,-500.0,0.00019178,2]
[348749332,1736770155712,-500.0,0.00019178,2]
[348749333,1736770155732,-500.0,0.00019178,2]
[348749334,1736770155754,-500.0,0.00019178,2]
[348749335,1736770155776,-500.0,0.00019178,2]
[348749336,1736770155798,-500.0,0.00019178,2]
[348749337,1736770155820,-500.0,0.00019178,2]
[348749338,1736770155841,-500.0,0.00019178,2]
[348749339,1736770155862,-261.47016195,0.00019178,2]
[348749340,1736770155883,-500.0,0.00019178,2]
[348749341,1736770155903,-500.0,0.00019178,2]
[348749342,1736770155924,-500.0,0.00019178,2]
[348749343,1736770155944,-500.0,0.00019178,2]
[348749344,1736770155965,-500.0,0.00019178,2]
[348749345,1736770155986,-500.0,0.00019178,2]
[348749346,1736770156006,-500.0,0.00019178,2]
[348749347,1736770156027,-500.0,0.00019178,2]
[348749348,1736770156049,-500.0,0.00019178,2]
[348749349,1736770156069,-434.13780601,0.00019178,2]
[348749350,1736770156090,-500.0,0.00019178,2]
[348749351,1736770156110,-500.0,0.00019178,2]
[348749352,1736770156132,-500.0,0.00019178,2]
[348749353,1736770156152,-500.0,0.00019178,2]
[348749354,1736770156172,-500.0,0.00019178,2]
[348749355,1736770156194,-500.0,0.00019178,2]
[348749356,1736770156217,-503.26463433,0.00019178,2]
[348749357,1736770156239,-500.0,0.00019178,2]
[348749358,1736770156261,-2436.49,0.00019178,2]
[348749359,1736770156282,-500.0,0.00019178,2]
[348749360,1736770156311,-500.0,0.00019178,2]
[348749361,1736770156339,-500.0,0.00019178,2]
[348749362,1736770156368,-500.0,0.00019178,2]
[348749363,1736770156394,-500.0,0.00019178,2]
[348749364,1736770156417,-174.46961517,0.00019178,2]
[348749365,1736770156445,-500.0,0.00019178,2]
[348749366,1736770156470,-500.0,0.00019178,2]
[348749367,1736770156496,-500.0,0.00019178,2]
[348749368,1736770156523,-500.0,0.00019178,2]
[348749369,1736770156552,-500.0,0.00019178,2]